bitfinex-derivatives/quotes_ETHF0:USTF0_20240829
["timestamp","ask_amount","ask_price","bid_price","bid_amount"]
[1724946307971,0.38711,2582.3,2581.9,4.089]
[1724946307972,0.38716,2582.0,2581.9,4.089]
[1724946308168,0.38715,2582.1,2581.9,4.089]
[1724946308468,0.38716,2582.0,2581.9,4.089]
[1724946309173,0.38716,2582.0,2581.9,7.9618]
[1724946310178,4.46,2582.1,2581.9,8.34896]
[1724946310473,0.38711,2582.3,2582.1,0.38714]
[1724946310657,4.46580844,2582.4,2582.1,0.38714]
[1724946310968,4.18251263,2582.3,2582.1,0.38714]
[1724946311167,0.38713,2582.2,2582.0,0.38715]
[1724946311565,5.15031263,2582.3,2581.9,4.47616]
[1724946311970,5.15031263,2582.3,2582.0,0.38715]
[1724946312172,0.38713,2582.2,2582.1,0.38714]
[1724946312557,0.38713,2582.2,2582.1,3.8728]
[1724946312766,0.38716,2582.0,2581.9,4.089]
[1724946312969,1.35506,2582.0,2581.9,4.089]
[1724946313565,1.35506,2582.0,2581.9,0.8812]
[1724946313871,1.35511,2581.9,2581.8,0.00580844]
[1724946314083,2.32305,2581.9,2581.8,0.00580844]
[1724946314377,2.32305,2581.9,2581.1,1.26939]
[1724946314378,0.38728,2581.2,2581.1,1.26939]
[1724946314558,1.35548,2581.2,2581.1,0.8821]
[1724946314965,0.38724,2581.5,2581.4,0.38724]
[1724946315271,8.63582,2581.7,2581.1,4.7565]
[1724946315272,4.46,2581.7,2581.2,3.21360844]
[1724946315466,0.38723,2581.6,2581.5,0.38723]
[1724946315662,0.96816,2581.3,2581.2,0.00580844]
[1724946315964,4.46,2581.3,2581.2,0.39308844]
[1724946316169,4.84726,2581.3,2581.2,0.00580844]
[1724946316469,9.68982,2581.3,2581.2,0.00580844]
[1724946316673,14.0211993,2581.3,2581.2,0.00580844]
[1724946317170,20.9893593,2581.3,2581.2,0.00580844]
[1724946317372,20.9893593,2581.3,2580.6,0.9279]
[1724946317373,0.38735,2580.7,2580.6,0.9279]
[1724946317572,0.38735,2580.8,2580.6,0.9279]
[1724946317767,4.84731,2581.0,2580.7,3.59514]
[1724946317968,4.84731,2581.0,2580.7,3.2078]
[1724946317969,4.46,2581.0,2580.7,3.2078]
[1724946318175,0.38734,2580.8,2580.7,3.2078]
[1724946318670,9.63066505,2580.8,2580.7,3.2078]
[1724946318977,0.38737,2580.6,2580.5,0.00580844]
[1724946320872,1.35579,2580.6,2580.5,0.00580844]
[1724946321672,9.40110144,2580.6,2580.5,0.00580844]
[1724946322779,8.43268144,2580.6,2580.5,0.00580844]
[1724946323080,9.40110144,2580.6,2580.5,0.00580844]
[1724946324973,4.55748144,2580.6,2580.5,0.00580844]
[1724946325277,9.62909844,2581.0,2580.5,3.88100844]
[1724946325581,0.38735,2580.7,2580.6,1.26686]
[1724946325876,0.38737,2580.6,2580.5,0.00580844]
[1724946326184,4.68052507,2580.6,2580.5,0.00580844]
[1724946326678,5.64894507,2580.6,2580.5,0.00580844]
[1724946327681,4.68052507,2580.6,2580.5,0.00580844]
[1724946328592,4.20080844,2581.0,2580.5,4.84946844]
[1724946328775,0.38734,2580.8,2580.6,0.38737]
[1724946328976,0.38733,2580.9,2580.7,1.24745]
[1724946329176,0.38733,2580.9,2580.8,0.9161]
[1724946329687,14.1243238,2580.9,2580.8,0.9161]
[1724946329983,15.0926338,2580.9,2580.8,0.9161]
[1724946331180,9.2816138,2580.9,2580.8,0.9161]
[1724946331582,12.7686838,2580.9,2580.8,1.30344]
[1724946331777,0.00580844,2581.0,2580.8,4.51124]
[1724946331982,0.38732,2580.9,2580.8,4.1239]
[1724946332183,1.35563,2580.9,2580.8,4.1239]
[1724946332493,1.35579,2580.6,2580.5,0.00580844]
[1724946333489,9.58479768,2580.6,2580.5,0.00580844]
[1724946334084,4.74117768,2580.6,2580.5,0.00580844]
[1724946334393,5.70959768,2580.6,2580.5,0.00580844]
[1724946334591,10.55321768,2580.6,2580.5,0.00580844]
[1724946335279,5.70959768,2580.6,2580.5,0.00580844]
[1724946336390,6.67801768,2580.6,2580.5,0.00580844]
[1724946337788,10.55321768,2580.6,2580.5,0.00580844]
[1724946338678,0.38744,2580.1,2580.0,1.7272]
[1724946338882,0.38744,2580.1,2580.0,2.11466]
[1724946339082,5.42855,2580.3,2580.2,0.38743]
[1724946339083,4.46,2580.3,2580.2,0.38743]
[1724946339282,0.38741,2580.3,2580.0,1.7272]
[1724946339494,0.38741,2580.3,2580.2,0.38742]
[1724946339691,0.3874,2580.4,2580.3,0.38741]
[1724946339885,0.38741,2580.3,2580.2,0.38742]
[1724946340084,4.40305284,2580.4,2580.1,3.2078]
[1724946340289,0.38742,2580.3,2580.2,0.38742]
[1724946341186,4.46,2580.6,2580.1,3.2078]
[1724946341388,4.46,2580.8,2580.5,3.2078]
[1724946341585,4.84734,2580.8,2580.6,1.7784]
[1724946341892,9.1746193,2580.8,2580.7,0.38735]
[1724946342086,4.84734,2580.8,2580.6,2.16575]
[1724946342287,0.38735,2580.7,2580.6,1.7784]
[1724946342493,0.38735,2580.7,2580.6,2.16577]
[1724946342688,0.38735,2580.7,2580.6,1.7784]
[1724946342889,1.35574,2580.7,2580.6,1.7784]
[1724946343490,1.35574,2580.7,2580.5,3.2078]
[1724946343491,1.35579,2580.6,2580.5,3.2078]
[1724946343699,0.38741,2580.3,2580.2,3.2078]
[1724946343996,0.38741,2580.4,2580.3,0.38741]
[1724946344198,4.84737,2580.6,2580.2,3.59522]
[1724946344391,0.3874,2580.4,2580.3,0.8877]
[1724946344587,1.3559,2580.4,2580.3,0.8877]
[1724946344788,0.3874,2580.4,2580.3,0.8877]
[1724946344995,0.3874,2580.4,2580.3,1.27511]
[1724946345690,1.3559,2580.4,2580.3,0.8877]
[1724946345893,5.81761754,2580.4,2580.3,0.8877]
[1724946348000,6.78611754,2580.4,2580.3,0.8877]
[1724946348399,5.81761754,2580.4,2580.3,0.8877]
[1724946348892,4.84911754,2580.4,2580.3,0.8877]
[1724946349094,5.81761754,2580.4,2580.3,0.8877]
[1724946349897,10.66131754,2580.4,2580.3,0.8877]
[1724946350201,6.78611754,2580.4,2580.3,0.8877]
[1724946350501,4.84911754,2580.4,2580.3,0.8877]
[1724946350703,0.3874,2580.4,2580.3,1.27511]
[1724946350901,0.3874,2580.4,2580.3,0.8877]
[1724946351589,0.3874,2580.4,2580.3,1.27511]
[1724946351792,1.3559,2580.4,2580.3,0.8877]
[1724946352395,9.58429889,2580.4,2580.3,0.8877]
[1724946352597,4.74059889,2580.4,2580.3,0.8877]
[1724946352803,0.38739,2580.5,2580.4,0.38739]
[1724946353201,4.82908469,2580.5,2580.4,0.38739]
[1724946353405,4.82908469,2580.5,2580.3,0.8877]
[1724946353406,4.82908469,2580.5,2580.3,1.2751]
[1724946353609,4.44169469,2580.5,2580.3,0.8877]
[1724946353806,0.3874,2580.4,2580.3,0.8877]
[1724946355208,0.38733,2580.9,2580.3,8.93922]
[1724946355398,3.35580844,2581.0,2580.8,3.2078]
[1724946355702,3.35580844,2581.0,2580.9,0.9395]
[1724946355900,3.35580844,2581.0,2580.9,3.19152]
[1724946356303,3.74311844,2581.0,2580.9,3.19152]
[1724946356503,3.35580844,2581.0,2580.9,3.19152]
[1724946356914,3.74311844,2581.0,2580.9,3.19152]
[1724946357211,0.00580844,2581.0,2580.9,3.19152]
[1724946357904,0.00580844,2581.0,2580.9,2.8042]
[1724946358110,0.00580844,2581.0,2580.9,0.9395]
[1724946358993,0.39311844,2581.0,2580.9,0.9395]
[1724946359515,0.00580844,2581.0,2580.9,0.9395]
[1724946360200,0.39311844,2581.0,2580.9,0.9395]
[1724946360400,0.00580844,2581.0,2580.9,0.9395]
[1724946360708,0.39311844,2581.0,2580.9,0.9395]
[1724946361003,0.39311844,2581.0,2580.3,1.00573142]
[1724946361004,1.3559,2580.4,2580.3,1.00573142]
[1724946361195,0.38744,2580.1,2580.0,0.95500844]
[1724946361399,8.05524,2580.1,2580.0,0.95500844]
[1724946362097,9.02385,2580.1,2580.0,0.00580844]
[1724946363506,8.05524,2580.1,2580.0,0.00580844]
[1724946363710,4.46,2580.3,2580.0,0.00580844]
[1724946363902,0.38744,2580.1,2580.0,1.01153986]
[1724946364304,0.38744,2580.1,2580.0,0.00580844]
[1724946365709,4.77790773,2580.2,2580.0,0.00580844]
[1724946366012,0.38743,2580.2,2580.0,1.01153986]
[1724946366308,4.84742,2580.3,2580.1,0.38744]
[1724946366610,4.84742,2580.3,2580.2,0.8726]
[1724946366808,4.84741,2580.3,2580.2,0.8726]
[1724946367022,0.38744,2580.1,2580.0,1.01153986]
[1724946367310,0.38744,2580.1,2580.0,0.00580844]
[1724946367506,4.46,2580.3,2580.0,0.00580844]
[1724946367706,4.56363482,2581.5,2580.0,1.94311268]
[1724946367707,4.46,2580.6,2580.0,1.94311268]
[1724946367901,4.17616,2580.8,2580.3,0.3874]
[1724946368208,4.43805823,2580.5,2580.4,1.813]
[1724946368706,4.43805823,2580.5,2580.4,0.9151]
[1724946369406,0.38743,2580.2,2580.1,1.00573142]
[1724946369609,0.38743,2580.2,2580.0,1.90943986]
[1724946369610,0.38744,2580.1,2580.0,1.90943986]
[1724946369809,0.38744,2580.1,2580.0,0.90370844]
[1724946370010,0.38743,2580.2,2580.0,2.29689986]
[1724946370603,0.38743,2580.2,2580.0,1.90943986]
[1724946371209,0.38744,2580.1,2580.0,0.90370844]
[1724946371410,0.38744,2580.1,2580.0,0.00580844]
[1724946371613,4.63177676,2580.1,2580.0,0.00580844]
[1724946371805,0.38744,2580.2,2580.0,0.39325844]
[1724946372311,4.78295291,2580.2,2580.0,0.39325844]
[1724946372514,0.38741,2580.3,2580.1,1.25734]
[1724946373200,0.38744,2580.1,2580.0,0.00580844]
[1724946374108,1.35605,2580.1,2580.0,0.00580844]
[1724946374522,5.81605,2580.1,2580.0,0.00580844]
[1724946375318,17.96700145,2580.1,2580.0,0.00580844]
[1724946376113,23.96700145,2580.1,2580.0,0.00580844]
[1724946376410,4.46,2580.4,2580.3,0.38741]
[1724946376611,0.17872865,2580.6,2580.5,0.38738]
[1724946376815,4.46,2580.7,2580.3,3.2078]
[1724946377016,4.37150367,2580.5,2580.4,0.3874]
[1724946377313,4.46,2580.7,2580.3,4.21353142]
[1724946377512,4.46,2580.7,2580.6,0.38737]
[1724946378017,3.35,2580.7,2580.6,0.38737]
[1724946378419,3.35,2580.9,2580.8,0.38734]
[1724946379211,0.38734,2580.8,2580.7,1.00573142]
[1724946379412,0.38736,2580.7,2580.4,0.38739]
[1724946379612,3.35,2580.7,2580.2,2.10273142]
[1724946379807,3.9302014,2580.6,2580.2,1.097]
[1724946380013,3.35,2580.8,2580.6,0.38736]
[1724946380208,4.17765613,2580.7,2580.6,0.38736]
[1724946380413,3.35,2580.8,2580.7,0.38735]
[1724946380610,3.35,2580.8,2580.6,6.44729142]
[1724946380809,3.35,2580.8,2580.6,6.05993142]
[1724946381015,3.35,2580.8,2580.7,0.38735]
[1724946381218,3.35,2580.8,2580.7,4.26255]
[1724946381414,3.35580844,2581.0,2580.7,3.8752]
[1724946381621,3.35580844,2581.0,2580.9,0.38732]
[1724946382124,3.35580844,2581.0,2580.9,3.8744]
[1724946382316,3.74311844,2581.0,2580.9,3.8744]
[1724946382512,3.35580844,2581.0,2580.8,1.097]
[1724946382718,0.38732,2580.9,2580.8,1.097]
[1724946383226,0.38732,2580.9,2580.5,4.71653322]
[1724946383227,1.35579,2580.6,2580.5,1.00573142]
[1724946383417,1.35579,2580.6,2580.3,4.191]
[1724946383418,0.3874,2580.4,2580.3,1.00573142]
[1724946383618,0.38741,2580.3,2580.2,1.00573142]
[1724946383823,3.7374,2580.4,2580.0,2.74355]
[1724946383824,3.7374,2580.4,2580.0,3.36183142]
[1724946384119,3.35,2580.1,2580.0,3.74929142]
[1724946384326,0.38741,2580.4,2580.2,0.38742]
[1724946384625,4.31844,2580.6,2580.1,4.60097142]
[1724946384824,3.73741,2580.3,2580.1,4.60097142]
[1724946385027,3.35,2580.3,2580.2,0.38743]
[1724946385219,3.73741,2580.3,2580.2,3.876]
[1724946385414,3.35,2580.3,2580.2,3.876]
[1724946385821,3.73741,2580.3,2580.2,3.876]
[1724946386131,3.35,2580.3,2580.2,4.26343]
[1724946386819,3.2078,2581.2,2580.7,0.38734]
[1724946387021,3.2078,2581.2,2580.2,13.226]
[1724946387022,0.39311844,2581.0,2580.5,4.21353142]
[1724946387215,0.39311844,2581.0,2580.6,3.75578142]
[1724946387216,0.38732,2580.9,2580.6,3.75578142]
[1724946387415,4.32409844,2581.0,2580.6,2.3627]
[1724946387621,3.2078,2580.9,2580.6,2.3627]
[1724946387817,0.38735,2580.7,2580.6,2.3627]
[1724946388217,7.38578585,2580.9,2580.3,1.00573142]
[1724946388218,3.35,2580.8,2580.3,1.00573142]
[1724946388528,0.38739,2580.5,2580.3,0.38741]
[1724946388724,0.38735,2580.7,2580.5,0.38738]
[1724946388923,7.53075295,2580.8,2580.2,3.30243142]
[1724946389123,0.00580844,2581.0,2580.4,4.35573142]
[1724946389321,0.00580844,2581.0,2580.9,0.38732]
[1724946389722,0.00580844,2581.0,2580.9,14.47525142]
[1724946389917,0.00143235,2581.0,2580.9,1.0023171]
[1724946390122,0.00143235,2581.0,2580.9,4.26172]
[1724946391134,0.00143235,2581.0,2580.9,3.8744]
[1724946391531,1.35569,2580.8,2580.7,0.00445115]
[1724946391927,9.6847779,2580.8,2580.7,0.00445115]
[1724946392933,3.20923235,2581.0,2580.7,3.87965115]
[1724946393129,3.59654235,2581.0,2580.7,0.00445115]
[1724946393324,0.38732,2580.9,2580.8,1.1646]
[1724946394130,3.59654235,2581.0,2580.8,1.1646]
[1724946394327,3.35143235,2581.0,2580.7,0.00445115]
[1724946394531,0.38734,2580.8,2580.7,0.00445115]
[1724946394733,3.59514,2580.8,2580.7,0.00445115]
[1724946395229,8.8194399,2580.8,2580.7,0.00445115]
[1724946395429,7.8510899,2580.8,2580.7,0.00445115]
[1724946395624,8.8194399,2580.8,2580.7,0.00445115]
[1724946396020,23.0129899,2580.8,2580.7,0.00445115]
[1724946396624,17.0129899,2580.8,2580.7,0.00445115]
[1724946396821,23.0129899,2580.8,2580.7,0.00445115]
[1724946397225,17.0129899,2580.8,2580.7,0.00445115]
[1724946397624,16.0446399,2580.8,2580.7,0.00445115]
[1724946399030,17.0129899,2580.8,2580.7,0.00445115]
[1724946399232,23.0129899,2580.8,2580.7,0.00445115]
[1724946399435,23.0129899,2580.8,2580.7,1.15e-06]
[1724946400033,23.8869899,2580.8,2580.7,1.15e-06]
[1724946400935,16.0446399,2580.8,2580.7,1.15e-06]
[1724946401439,3.2078,2580.8,2580.7,1.15e-06]
[1724946401635,3.2078,2580.8,2580.7,0.38735115]
[1724946401835,3.59514,2580.8,2580.7,1.15e-06]
[1724946402035,3.2078,2580.8,2580.7,0.38735115]
[1724946402426,3.59514,2580.8,2580.7,1.15e-06]
[1724946402631,0.38733,2580.9,2580.7,0.38735115]
[1724946402939,4.60868985,2580.9,2580.8,0.38734]
[1724946403339,0.38733,2580.9,2580.8,0.38734]
[1724946403645,0.38734,2580.8,2580.7,1.15e-06]
[1724946403831,3.73734,2580.8,2580.7,1.15e-06]
[1724946404036,4.70569,2580.8,2580.7,1.15e-06]
[1724946404555,8.58089,2580.8,2580.7,1.15e-06]
[1724946404744,12.70122182,2580.8,2580.7,1.15e-06]
[1724946405044,19.66957182,2580.8,2580.7,1.15e-06]
[1724946405343,13.66957182,2580.8,2580.7,1.15e-06]
[1724946406244,19.66957182,2580.8,2580.7,1.15e-06]
[1724946409038,0.38747,2579.9,2579.8,61.319]
[1724946409341,3.59527,2579.9,2579.8,58.3573]
[1724946409547,7.65745411,2579.9,2579.8,62.62079]
[1724946409837,3.59527,2579.9,2579.8,62.2333]
[1724946410141,9.01361411,2579.9,2579.8,58.3573]
[1724946410841,12.88961411,2579.9,2579.8,57.128]
[1724946411034,13.85830411,2579.9,2579.8,57.128]
[1724946411437,9.01361411,2579.9,2579.8,57.128]
[1724946412242,8.04492411,2579.9,2579.8,57.128]
[1724946412446,4.83712411,2579.9,2579.8,57.51549]
[1724946413241,4.44965411,2579.9,2579.8,57.51549]
[1724946413541,4.83712411,2579.9,2579.8,57.128]
[1724946414537,5.80581411,2579.9,2579.8,57.128]
[1724946414941,9.68181411,2579.9,2579.8,57.128]
[1724946416045,10.65050411,2579.9,2579.8,57.128]
[1724946417546,9.68181411,2579.9,2579.8,57.128]
[1724946418250,4.83712411,2579.9,2579.8,57.128]
[1724946419048,0.3875,2579.8,2579.6,0.38752]
[1724946419240,3.35,2579.8,2579.7,0.3875]
[1724946419645,3.35,2579.8,2579.7,4.2635]
[1724946420350,3.73739,2580.5,2579.7,9.876]
[1724946420550,3.35,2580.5,2579.9,4.17649]
[1724946420746,3.35,2580.5,2580.2,0.38742]
[1724946420747,4.09478968,2580.3,2580.2,0.38742]
[1724946420953,4.09478968,2580.4,2580.3,0.38741]
[1724946421148,3.35,2580.5,2580.4,0.3874]
[1724946421344,3.73739,2580.5,2580.3,0.3874]
[1724946421554,7.80112235,2580.5,2580.4,1.1337]
[1724946421855,7.41373235,2580.5,2580.4,1.1337]
[1724946422056,7.80111235,2580.5,2580.4,1.1337]
[1724946422448,8.76957235,2580.5,2580.4,1.1337]
[1724946423251,0.38741,2580.3,2580.1,1.53444]
[1724946423453,3.73741,2580.3,2580.2,1.1694]
[1724946423856,8.16856348,2580.3,2580.2,1.1694]
[1724946424056,1.356,2580.2,2580.1,1.147]
[1724946424455,9.61229661,2580.2,2580.1,1.147]
[1724946424758,0.38749,2579.8,2579.7,1.1694]
[1724946424958,3.73749,2579.8,2579.7,1.1694]
[1724946425961,7.97291433,2579.8,2579.7,1.1694]
[1724946426162,7.97291433,2579.8,2579.7,2.3752]
[1724946426364,8.94163433,2579.8,2579.7,1.2058]
[1724946427258,12.81763433,2579.8,2579.7,1.2058]
[1724946428751,8.94163433,2579.8,2579.7,1.2058]
[1724946428952,7.97291433,2579.8,2579.7,1.2058]
[1724946429147,8.94163433,2579.8,2579.7,1.2058]
[1724946429448,5.59163433,2579.8,2579.7,1.2058]
[1724946429654,4.62291433,2579.8,2579.7,1.2058]
[1724946429856,4.23542433,2579.8,2579.7,1.5933]
[1724946430055,0.96862,2580.1,2580.0,0.38746]
[1724946430056,3.35,2580.1,2580.0,0.38746]
[1724946430362,0.3874,2580.4,2580.2,0.38743]
[1724946430560,6.5578,2580.5,2580.2,40.8]
[1724946430561,3.73741,2580.3,2580.2,40.8]
[1724946430955,3.73741,2580.3,2580.1,0.38743]
[1724946430956,0.38747,2579.9,2579.8,1.00299313]
[1724946431151,3.73747,2579.9,2579.8,1.00299313]
[1724946431357,12.02716125,2579.9,2579.8,1.00299313]
[1724946431657,11.63969125,2579.9,2579.8,1.00299313]
[1724946431858,7.76369125,2579.9,2579.8,1.39048313]
[1724946432255,8.15116125,2579.9,2579.8,1.39048313]
[1724946432456,7.76369125,2579.9,2579.8,1.39048313]
[1724946432852,8.15116125,2579.9,2579.8,1.00299313]
[1724946433357,4.41369125,2579.9,2579.8,6.49448313]
[1724946433558,3.35,2580.1,2580.0,0.38746]
[1724946435067,3.35,2580.3,2580.0,0.38745]
[1724946435265,3.73744,2580.1,2579.9,0.38746]
[1724946435558,0.38747,2579.9,2579.8,3.37399313]
[1724946435760,0.38747,2579.9,2579.8,2.371]
[1724946435761,3.73747,2579.9,2579.8,2.371]
[1724946435965,7.58318329,2579.9,2579.8,2.371]
[1724946436564,7.19571329,2579.9,2579.8,2.75849]
[1724946436773,7.58318329,2579.9,2579.8,2.75849]
[1724946437064,7.58318329,2579.9,2579.8,2.371]
[1724946437265,7.19571329,2579.9,2579.8,2.75849]
[1724946437660,3.35,2580.1,2580.0,0.38746]
[1724946438053,3.35,2580.1,2579.8,2.371]
[1724946438054,8.09677028,2580.1,2579.9,0.38746]
[1724946438466,7.70933028,2580.1,2579.8,2.371]
[1724946438665,0.38747,2580.0,2579.8,2.75848]
[1724946439165,3.35,2580.1,2579.8,2.75848]
[1724946439364,4.23891974,2579.9,2579.8,2.75848]
[1724946439572,4.0564462,2580.0,2579.9,0.38747]
[1724946439763,3.35,2580.1,2580.0,0.38746]
[1724946439960,0.38744,2580.1,2580.0,0.38746]
[1724946440161,0.38743,2580.2,2580.1,0.38744]
[1724946440361,4.44132063,2580.1,2580.0,0.38745]
[1724946440668,4.44132063,2580.1,2579.9,0.38746]
[1724946440669,0.38746,2580.0,2579.9,0.38746]
[1724946441168,0.38746,2580.0,2579.8,2.371]
[1724946441368,4.05388063,2580.0,2579.9,0.38747]
[1724946442268,4.44134063,2580.0,2579.9,0.38747]
[1724946442463,0.38747,2579.9,2579.8,2.371]
[1724946442679,10.4338,2579.9,2579.3,1.00299313]
[1724946442860,3.35,2579.4,2579.3,1.197]
[1724946443167,4.26660595,2579.4,2579.3,1.197]
[1724946443375,4.26660595,2579.4,2579.3,5.46136]
[1724946443577,0.00580844,2579.6,2579.5,0.38753]
[1724946443868,4.12155583,2579.6,2579.5,0.38753]
[1724946444072,4.12155583,2579.6,2579.5,5.26732313]
[1724946444261,3.2078,2579.8,2579.7,0.3875]
[1724946444460,0.38741,2580.3,2580.0,0.38746]
[1724946444672,0.38743,2580.2,2580.1,1.1869]
[1724946445166,4.03649074,2580.3,2580.1,1.1869]
[1724946445371,4.03649074,2580.3,2580.2,3.59523]
[1724946445566,3.35,2580.6,2580.2,3.59523]
[1724946445567,0.00580844,2580.5,2580.4,0.3874]
[1724946445770,6.5578,2581.1,2580.4,9.44159062]
[1724946446071,4.26647628,2581.0,2580.9,0.38732]
[1724946446374,7.7383033,2581.1,2580.8,44.55734911]
[1724946446864,3.35,2581.1,2580.8,43.55253]
[1724946447070,3.35,2581.1,2580.8,43.1652]
[1724946447271,3.35,2581.1,2580.8,43.55253]
[1724946447468,3.35,2581.1,2580.9,1.1424]
[1724946447877,3.35,2581.1,2580.4,1.00481911]
[1724946447878,11.36401988,2581.0,2580.4,1.00481911]
[1724946448070,3.35,2580.5,2580.3,1.1424]
[1724946448372,9.78931988,2581.0,2580.3,41.9424]
[1724946448373,3.35,2580.7,2580.3,41.9424]
[1724946448764,4.27862757,2580.6,2580.3,41.9424]
[1724946449071,4.66599757,2580.6,2580.3,1.1424]
[1724946449275,3.73739,2580.5,2580.3,1.1424]
[1724946449466,0.3874,2580.4,2580.3,1.1424]
[1724946449670,3.5952,2580.4,2580.3,1.1424]
[1724946449871,3.73739,2580.5,2580.3,1.1424]
[1724946450270,3.35,2580.5,2580.3,1.1424]
[1724946451163,3.5952,2580.4,2580.3,1.1424]
[1724946451566,3.2078,2580.4,2580.3,1.1424]
[1724946451767,3.35,2580.9,2580.4,0.38739]
[1724946451969,6.94513,2580.9,2580.4,0.38739]
[1724946452170,3.35,2580.7,2580.4,0.3874]
[1724946452369,4.42752284,2580.8,2580.3,42.94721911]
[1724946452581,6.5578,2580.9,2580.6,0.38737]
[1724946452767,6.5578,2580.9,2580.3,46.82241911]
[1724946452768,6.5578,2580.9,2580.7,1.1351]
[1724946452968,7.55080844,2581.2,2580.9,0.38731]
[1724946453179,3.35580844,2581.2,2580.9,0.38731]
[1724946454379,0.00580844,2581.2,2581.1,0.38729]
[1724946454578,0.38729,2581.1,2580.8,2.3466]
[1724946454770,3.35,2581.1,2580.8,2.3466]
[1724946454968,3.35,2581.1,2580.9,0.38731]
[1724946455277,3.35,2581.1,2581.0,0.38731]
[1724946455783,3.21360844,2581.2,2581.1,0.38729]
[1724946456382,3.21360844,2581.2,2581.1,3.8744]
[1724946456573,6.95088844,2581.2,2580.9,0.38731]
[1724946456768,10.83746203,2581.2,2580.9,0.38731]
[1724946456968,0.38732,2580.9,2580.8,1.159]
[1724946457482,4.66117359,2580.9,2580.8,1.159]
[1724946457873,7.86897359,2580.9,2580.8,1.159]
[1724946458075,4.27385359,2580.9,2580.8,1.159]
[1724946458376,0.3873,2581.1,2580.8,5.42074]
[1724946458681,6.56360844,2581.2,2581.1,0.38729]
[1724946458682,3.21360844,2581.2,2581.1,0.38729]
[1724946458878,3.21360844,2581.2,2581.0,0.3873]
[1724946459076,3.60088844,2581.2,2580.8,1.159]
[1724946459271,3.21360844,2581.2,2581.0,0.3873]
[1724946459480,3.21360844,2581.2,2581.1,0.38729]
[1724946459778,0.00580844,2581.2,2581.1,0.38729]
[1724946460079,0.00580844,2581.2,2581.1,4.26169]
[1724946461379,0.00580844,2581.2,2581.1,3.8744]
[1724946461572,3.74308844,2581.2,2581.1,3.8744]
[1724946461775,0.00580844,2581.2,2581.1,4.26169]
[1724946463173,0.00580844,2581.2,2581.1,5.22993]
[1724946463773,0.00580844,2581.2,2581.1,4.26169]
[1724946464181,0.00580844,2581.2,2581.1,5.22993]
[1724946465587,0.00580844,2581.2,2581.1,6.19817]
[1724946466191,0.00580844,2581.2,2581.1,12.19817]
[1724946466689,0.00580844,2581.2,2581.1,52.99817]
[1724946467085,5.44127,2582.1,2581.4,0.38725]
[1724946467386,4.36350868,2582.0,2581.6,6.5578]
[1724946467585,4.36350868,2582.0,2581.9,0.38717]
[1724946467889,3.35,2582.4,2581.9,3.8728]
[1724946468087,0.38712,2582.3,2582.0,1.0893]
[1724946468285,3.73714,2582.2,2581.9,0.39297844]
[1724946468685,3.73714,2582.2,2581.9,0.39296844]
[1724946468686,4.13910058,2582.1,2581.9,0.39296844]
[1724946468978,4.13910058,2582.1,2582.0,0.38716]
[1724946469179,4.13910058,2582.1,2581.9,0.00580844]
[1724946469180,7.66130844,2582.4,2581.9,3.87860844]
[1724946469385,7.66130844,2582.4,2582.2,0.38712]
[1724946469588,4.4518668,2582.3,2582.2,0.38712]
[1724946469793,3.21360844,2582.4,2582.2,0.38712]
[1724946470091,6.95070844,2582.4,2582.1,0.38713]
[1724946470292,0.38711,2582.3,2582.0,1.52895]
[1724946471089,0.38711,2582.3,2582.0,1.1418]
[1724946471288,0.38711,2582.3,2581.9,0.00580844]
[1724946471289,6.56360844,2582.4,2581.9,0.00580844]
[1724946471479,4.75298567,2582.2,2581.9,0.39296844]
[1724946471681,5.32139254,2582.3,2581.9,0.00580844]
[1724946471881,1.0759,2582.3,2581.9,0.00580844]
[1724946472104,1.46302,2582.3,2582.0,0.38716]
[1724946472302,6.95070844,2582.4,2582.1,0.38714]
[1724946472586,3.60070844,2582.4,2582.0,0.38715]
[1724946472892,1.35506,2582.0,2581.9,0.00580844]
[1724946473290,2.53566,2582.0,2581.9,0.00580844]
[1724946473489,3.50356,2582.0,2581.9,0.00580844]
[1724946473783,6.71136,2582.0,2581.9,0.00580844]
[1724946475086,3.50356,2582.0,2581.9,0.00580844]
[1724946475789,2.53566,2582.0,2581.9,0.00580844]
[1724946476087,5.74346,2582.0,2581.9,0.00580844]
[1724946476284,6.71136,2582.0,2581.9,0.00580844]
[1724946476791,5.74346,2582.0,2581.9,0.00580844]
[1724946476990,2.53566,2582.0,2581.9,0.00580844]
[1724946477881,5.74346,2582.0,2581.9,0.00580844]
[1724946478191,7.52559,2582.3,2581.9,0.00580844]
[1724946478387,0.38715,2582.1,2581.9,0.00580844]
[1724946478695,0.38716,2582.0,2581.9,0.00580844]
[1724946479090,4.48289364,2582.2,2581.9,0.00580844]
[1724946479386,0.38716,2582.0,2581.9,0.00580844]
[1724946479590,3.59496,2582.0,2581.9,0.00580844]
[1724946479798,4.56286,2582.0,2581.9,0.00580844]
[1724946479989,3.59496,2582.0,2581.9,0.00580844]
[1724946480391,3.35,2582.1,2581.9,0.39297844]
[1724946480392,3.73715,2582.1,2581.9,0.39297844]
[1724946480686,8.64091,2582.3,2581.9,0.00580844]
[1724946481191,4.2113366,2582.2,2581.9,0.00580844]
[1724946481389,0.00580844,2582.4,2582.3,0.38711]
[1724946481593,0.00580844,2582.4,2582.3,3.59491]
[1724946481897,0.00580844,2582.4,2582.3,13.46771]
[1724946482098,0.00580844,2582.4,2582.3,5.35861]
[1724946482398,0.00580844,2582.4,2582.3,46.15861]
[1724946483294,0.00580844,2582.4,2582.3,52.15861]
[1724946483593,0.00580844,2582.4,2582.3,5.35861]
[1724946483798,0.00580844,2582.4,2582.3,1.48581]
[1724946483987,0.00580844,2582.4,2582.3,46.15861]
[1724946484481,3.2078,2582.8,2582.7,0.38705]
[1724946484694,1.1034,2582.9,2582.8,0.38704]
[1724946484989,0.96736,2583.5,2582.3,54.13729]
[1724946484990,3.35,2583.4,2583.2,0.38697]